bitfinex/quotes_ETHUSD_20250428
["timestamp","ask_amount","ask_price","bid_price","bid_amount"]
[1745867009024,5.55355341,1800.7,1800.3,0.813]
[1745867009264,5.6071056,1801.3,1800.4,14.5]
[1745867009265,0.05551,1801.3,1800.4,14.5]
[1745867010661,5.55269402,1801.0,1800.1,5.55516858]
[1745867010864,5.60719935,1801.3,1800.4,20.05409863]
[1745867011070,1.17135445,1801.3,1800.4,14.5]
[1745867011362,5.55185431,1801.2,1800.4,14.5]
[1745867011562,5.55240133,1801.1,1800.4,14.5]
[1745867011769,0.05551,1801.3,1800.4,14.5]
[1745867011770,5.55250226,1801.0,1800.4,14.5]
[1745867011968,16.684,1801.2,1800.4,14.5]
[1745867012134,5.55235456,1801.1,1800.4,14.5]
[1745867012329,22.23592376,1801.2,1800.4,20.05401905]
[1745867012569,1e-08,1801.3,1800.4,1.89386046]
[1745867012750,3.75000001,1801.6,1801.5,5.55092978]
[1745867012962,3.75000001,1801.6,1800.7,3.0]
[1745867013161,3.73333541,1801.6,1801.5,14.5]
[1745867013374,9.28395707,1801.6,1801.5,14.5]
[1745867013673,3.73333541,1801.6,1800.4,1.89386046]
[1745867013975,3.73333541,1801.6,1801.5,6.10092978]
[1745867014184,0.03333541,1801.6,1801.5,0.55]
[1745867014477,0.03333541,1801.6,1801.5,20.60092978]
[1745867014981,1.13978318,1802.5,1801.6,3.0]
[1745867014982,0.35818318,1802.5,1801.6,3.0]
[1745867015162,0.35818318,1802.5,1801.6,0.55]
[1745867015163,0.0923695,1802.4,1801.6,0.55]
[1745867015332,0.0923695,1802.4,1802.0,0.55]
[1745867015529,0.0923695,1802.4,1802.3,14.5]
[1745867016333,0.0923695,1802.4,1801.0,0.7958]
[1745867016732,5.55077546,1801.6,1801.0,0.7958]
[1745867016934,5.5518555,1801.2,1801.0,0.7958]
[1745867017173,5.55281711,1800.9,1799.5,6.30915004]
[1745867017435,5.55679039,1799.6,1799.5,0.7522]
[1745867017770,5.55470857,1800.3,1799.1,0.05]
[1745867017771,5.55640529,1799.8,1799.1,0.05]
[1745867017976,5.55588098,1799.9,1799.2,5.55796883]
[1745867018180,5.55555555,1800.0,1799.1,0.05]
[1745867018345,0.55555556,1799.9,1799.1,0.05]
[1745867018540,5.55802578,1799.2,1799.1,0.05]
[1745867018765,22.22902578,1799.2,1799.1,0.05]
[1745867019406,22.2271729,1799.8,1799.1,0.05]
[1745867019556,5.55802578,1799.2,1799.1,0.05]
[1745867019754,5.55698429,1799.6,1799.1,0.05]
[1745867019990,16.671,1799.8,1799.1,0.05]
[1745867020163,5.55670145,1799.7,1799.1,0.05]
[1745867020363,5.55432126,1800.4,1799.1,0.05]
[1745867020707,0.819,1800.5,1799.1,0.05]
[1745867021002,5.55529477,1800.1,1799.3,5.55754063]
[1745867021301,5.55503444,1800.2,1799.1,0.05]
[1745867021461,0.819,1800.5,1799.1,0.355]
[1745867021674,0.8083,1801.0,1799.4,3.7958]
[1745867021896,5.55316995,1800.8,1800.0,5.55549899]
[1745867022113,0.8083,1801.0,1799.6,3.0]
[1745867022407,0.8083,1801.0,1799.8,5.55614275]
[1745867022576,0.8083,1801.0,1799.9,3.7792]
[1745867022776,6.36100784,1801.0,1800.2,5.55470771]
[1745867022971,6.36100784,1801.0,1800.2,5.55484546]
[1745867023172,5.5522773,1801.1,1800.3,5.55434676]
[1745867023373,5.5515461,1801.3,1799.9,0.7792]
[1745867023625,5.5536036,1800.7,1800.0,5.55551302]
[1745867023912,5.55293756,1800.9,1800.0,5.55534123]
[1745867024079,5.55307155,1800.9,1800.0,5.55527138]
[1745867024278,5.55336547,1800.8,1800.0,5.55541519]
[1745867024608,5.55423005,1800.5,1799.9,0.7792]
[1745867024813,5.55423005,1800.5,1799.5,0.7847]
[1745867024814,5.55561111,1800.0,1799.5,0.7847]
[1745867024975,5.55546976,1800.1,1799.5,0.7847]
[1745867025510,22.78373806,1800.5,1799.7,5.55631038]
[1745867025711,16.674,1800.5,1800.0,5.55546979]
[1745867025914,15.09554537,1801.4,1799.8,5.55592487]
[1745867025915,0.9218695,1801.6,1800.9,5.55248913]
[1745867026102,1.56910431,1801.6,1800.1,3.7847]
[1745867026286,5.55096081,1801.5,1800.8,5.55283651]
[1745867026491,5.55146866,1801.4,1800.8,0.55]
[1745867026731,5.5512584,1801.4,1800.8,6.10305457]
[1745867026950,5.55128559,1801.4,1800.6,5.5535735]
[1745867027251,5.55092978,1801.5,1800.1,0.7847]
[1745867027435,5.55310275,1800.8,1800.2,0.55]
[1745867027635,5.55295338,1800.9,1800.2,6.10491404]
[1745867027883,22.22367426,1801.3,1800.2,3.55]
[1745867028035,5.55220881,1801.1,1800.5,0.55]
[1745867028236,1.11041013,1801.1,1800.1,0.7847]
[1745867028487,5.55339825,1800.7,1800.1,6.33981163]
[1745867028988,5.55252886,1801.0,1800.1,0.7847]
[1745867029186,5.55413614,1800.5,1799.7,6.34703092]
[1745867029340,6.30914441,1801.1,1799.7,0.7907]
[1745867029341,5.55444882,1800.4,1799.7,0.7907]
[1745867029688,5.55533116,1800.1,1799.4,3.0]
[1745867029839,5.55533116,1800.1,1799.4,9.49207839]
[1745867030031,16.672,1800.4,1800.1,5.55505202]
[1745867030265,16.672,1800.4,1800.1,5.55519107]
[1745867030470,16.672,1800.4,1799.7,3.55]
[1745867030637,16.672,1800.4,1799.8,5.55598717]
[1745867030850,22.22644779,1800.4,1799.9,0.29620702]
[1745867031062,16.672,1800.4,1799.9,0.29620702]
[1745867031269,6.30939977,1801.0,1800.1,0.55]
[1745867031458,5.55290708,1800.9,1800.2,5.55470369]
[1745867031653,0.7569,1801.0,1800.5,6.10389209]
[1745867031965,22.22431112,1801.1,1800.5,5.55387968]
[1745867032136,16.672,1801.1,1800.2,3.29620702]
[1745867032341,5.55275704,1801.0,1800.3,1.04486049]
[1745867032578,16.672,1801.1,1800.5,5.55382121]
[1745867032881,16.672,1801.1,1800.4,0.29620702]
[1745867032882,0.0923695,1801.6,1800.7,0.55]
[1745867033042,0.0923695,1801.6,1800.9,0.55]
[1745867033244,5.5512905,1801.4,1801.1,0.0166698]
[1745867033567,5.55108296,1801.5,1801.1,0.0166698]
[1745867033766,11.10230433,1801.5,1801.1,0.0166698]
[1745867033966,5.55108296,1801.5,1801.1,0.0166698]
[1745867034152,5.55122934,1801.5,1801.1,0.0166698]
[1745867034351,0.0923695,1801.6,1801.1,5.56881006]
[1745867034556,5.64317487,1801.6,1801.1,0.0166698]
[1745867034780,0.005,1802.3,1801.3,5.5515461]
[1745867034994,0.005,1802.3,1801.8,6.10000555]
[1745867035288,0.005,1802.3,1801.8,6.59364223]
[1745867035485,0.005,1802.3,1801.8,6.88980265]
[1745867036243,5.55361399,1802.3,1801.8,1.3397971]
[1745867036484,0.005,1802.3,1801.8,0.7897971]
[1745867036786,5.59969754,1801.9,1801.8,0.7897971]
[1745867036952,6.79329156,1801.9,1801.8,0.29616042]
[1745867037153,0.05,1801.9,1801.8,0.29616042]
[1745867037368,5.59969754,1801.9,1801.1,0.5666698]
[1745867037689,0.05,1801.9,1801.2,0.49389817]
[1745867037978,5.55000555,1801.8,1801.3,0.29630715]
[1745867038138,5.5997849,1801.9,1801.3,0.29630715]
[1745867038349,0.60997849,1801.9,1801.3,0.29630715]
[1745867038674,0.60997849,1801.9,1801.2,0.49389817]
[1745867038675,5.5515461,1801.3,1801.2,0.49389817]
[1745867038876,5.55185431,1801.2,1801.1,0.0166698]
[1745867039256,5.55354528,1800.7,1800.3,0.7958]
[1745867039460,5.55375125,1800.6,1800.3,0.7958]
[1745867039751,0.7843,1801.8,1800.5,5.55385759]
[1745867039938,5.55147171,1801.4,1800.8,5.55295835]
[1745867040141,5.55097183,1801.5,1800.9,5.55251056]
[1745867040688,5.55109772,1801.5,1800.7,5.55329431]
[1745867040862,5.55043596,1801.7,1800.6,3.55538576]
[1745867041051,0.7843,1801.8,1801.1,0.55]
[1745867041254,5.55001432,1801.8,1801.2,5.55173305]
[1745867041452,0.05,1801.9,1801.8,5.55000555]
[1745867041701,0.05,1801.9,1801.8,6.10000555]
[1745867041998,0.005,1802.3,1802.2,6.09877372]
[1745867042196,0.005,1802.3,1802.2,9.59271619]
[1745867042550,0.005,1802.3,1802.2,11.10688538]
[1745867042786,1e-08,1802.3,1802.2,11.88318538]
[1745867043070,1e-08,1802.3,1802.2,12.17883798]
[1745867043265,4.0,1803.3,1802.4,3.55]
[1745867043473,0.827,1805.2,1803.5,5.54477405]
[1745867043751,0.05,1804.9,1803.8,1.06568116]
[1745867043952,0.03529731,1804.9,1803.6,1.87483101]
[1745867044146,0.03529731,1804.9,1803.9,5.54354057]
[1745867044353,0.03529731,1804.9,1804.8,9.09078014]
[1745867044606,0.05,1805.9,1805.2,9.0895524]
[1745867044899,0.05,1805.9,1804.8,0.2956526]
[1745867045104,5.53979484,1805.2,1804.9,0.55]
[1745867045266,5.58744009,1805.9,1804.9,0.55]
[1745867045489,5.58744009,1805.9,1804.8,0.2956526]
[1745867045490,0.05,1805.9,1804.8,0.2956526]
[1745867045706,5.53928092,1805.3,1804.6,0.55]
[1745867046034,5.53910603,1805.4,1804.6,0.55]
[1745867046327,4.4,1805.7,1804.8,0.55]
[1745867046328,0.14176543,1805.3,1804.8,0.55]
[1745867046679,5.53863195,1805.5,1804.6,6.09126609]
[1745867046881,0.13390915,1805.2,1804.8,0.55]
[1745867047082,5.53851762,1805.6,1804.8,0.55]
[1745867047300,4.0,1805.7,1804.8,0.55]
[1745867047602,5.53832521,1805.6,1805.5,0.11086602]
[1745867047782,5.65389446,1805.6,1805.5,0.11086602]
[1745867047979,5.53863195,1805.5,1803.2,9.54407695]
[1745867048288,1.63476623,1805.6,1803.2,0.4544]
[1745867048289,5.54360124,1803.9,1803.2,0.4544]
[1745867048612,5.54405752,1803.8,1803.2,0.4544]
[1745867048826,0.10696251,1803.8,1803.4,5.54506708]
[1745867049023,5.54185636,1804.5,1803.7,0.4544]
[1745867049191,0.10971162,1804.4,1803.7,0.4544]
[1745867049396,0.9992,1805.8,1803.7,0.59987511]
[1745867049728,9.53832087,1805.7,1804.2,5.54247066]
[1745867049885,5.53874233,1805.5,1804.3,0.55]
[1745867050088,5.53924555,1805.3,1803.9,0.4544]
[1745867050287,5.53832521,1805.6,1804.0,8.54314818]
[1745867050624,0.55383252,1805.5,1804.3,0.55]
[1745867050792,5.53988666,1805.1,1804.3,6.09212928]
[1745867050999,5.54020418,1805.0,1804.3,0.55]
[1745867051210,4.0,1805.7,1805.6,5.53832521]
[1745867051416,4.0,1805.7,1805.6,3.4544]
[1745867051614,4.0,1805.7,1804.9,3.55]
[1745867051784,3.9445706,1805.7,1805.6,0.55]
[1745867052314,5.53851053,1805.6,1804.4,5.99626904]
[1745867052512,3.9445706,1805.7,1804.6,5.54137922]
[1745867052813,3.9445706,1805.7,1805.1,0.4544]
[1745867053021,3.9445706,1805.7,1805.4,0.55]
[1745867053210,3.88914233,1805.7,1805.4,6.0889201]
[1745867053420,3.87251514,1805.7,1805.2,0.55]
[1745867053587,3.87251514,1805.7,1805.2,6.08948303]
[1745867053916,3.87251514,1805.7,1805.1,0.4544]
[1745867054230,9.41057425,1805.7,1805.1,3.4544]
[1745867054438,5.53832521,1805.6,1804.7,0.55072273]
[1745867054743,5.53924555,1805.3,1804.3,0.4544]
[1745867054947,5.5395524,1805.2,1803.9,0.4544]
[1745867055149,6.09381452,1805.1,1804.0,5.54320103]
[1745867055467,5.53924555,1805.3,1804.5,0.4544]
[1745867055589,5.53964999,1805.2,1804.5,0.4544]
[1745867055789,0.7964,1805.4,1804.5,0.4544]
[1745867056031,5.54007461,1805.1,1804.5,0.4544]
[1745867056233,9.41074857,1805.7,1804.5,0.4544]
[1745867056234,3.87251514,1805.7,1804.5,0.4544]
[1745867056436,0.38725151,1805.6,1804.9,9.09033904]
[1745867056732,9.4106664,1805.7,1804.9,9.09021208]
[1745867056939,3.87251514,1805.7,1805.3,0.55]
[1745867057091,3.87251514,1805.7,1805.6,0.55]
[1745867060200,5.54051243,1804.9,1804.5,0.4544]
[1745867060417,5.54125794,1804.7,1804.0,5.54295236]
[1745867060615,5.53985928,1805.1,1804.0,0.55429524]
[1745867060914,5.54294646,1804.1,1803.8,0.4544]
[1745867061228,5.54217646,1804.4,1803.5,0.4544]
[1745867061433,5.54183287,1804.5,1803.8,5.54369327]
[1745867061589,0.8351654,1805.7,1803.9,0.4544]
[1745867061793,6.37321472,1805.7,1804.7,0.4544]
[1745867061991,5.53942194,1805.3,1804.7,5.9954718]
[1745867062628,5.53989168,1805.1,1804.4,0.50985998]
[1745867062927,5.53967943,1805.2,1804.4,0.50985998]
[1745867063100,5.5417013,1804.5,1804.4,0.05545998]
[1745867063303,6.65002109,1804.5,1804.4,0.05545998]
[1745867063529,5.54437656,1803.7,1803.3,0.4544]
[1745867063704,17.73931979,1804.5,1803.3,0.4544]
[1745867063903,5.5434971,1804.0,1803.3,5.9997001]
[1745867064091,5.54307752,1804.1,1803.4,3.0]
[1745867064296,5.54491051,1803.5,1803.1,0.05]
[1745867064492,5.54351238,1804.0,1803.1,0.05]
[1745867064696,5.54462926,1803.6,1803.1,0.05]
[1745867064927,1.10831979,1804.5,1803.2,0.4544]
[1745867065230,5.54322279,1804.1,1803.4,5.54508151]
[1745867065406,5.54322279,1804.1,1803.4,9.09508151]
[1745867065609,0.7822,1804.2,1803.2,0.4544]
[1745867065806,16.631,1804.3,1803.7,5.5438985]
[1745867066128,5.54188758,1804.5,1803.9,0.55]
[1745867066532,0.7822,1804.9,1803.3,0.4544]
[1745867066831,5.54108716,1804.7,1803.7,6.09401853]
[1745867067029,0.8114,1805.2,1803.8,0.4544]
[1745867067326,5.54194475,1804.5,1803.9,0.55]
[1745867067501,0.8114,1804.5,1803.8,0.4544]
[1745867067704,5.54340669,1804.0,1803.5,0.55]
[1745867067898,5.5440466,1803.8,1803.4,0.4544]
[1745867068101,5.54368907,1803.9,1803.4,0.4544]
[1745867068333,5.54363359,1803.9,1803.4,0.4544]
[1745867068704,5.5434224,1804.0,1803.4,0.4544]
[1745867068916,5.54429423,1803.7,1803.1,0.5044]
[1745867069125,5.54400517,1803.8,1803.1,6.05025565]
[1745867069428,5.54396823,1803.8,1803.2,0.29485136]
[1745867069639,6.36443456,1803.9,1803.2,6.33180156]
[1745867070132,6.36439136,1803.9,1803.3,0.78612757]
[1745867070330,5.54283344,1804.2,1803.5,5.54454499]
[1745867070495,5.54267963,1804.2,1803.6,5.54425829]
[1745867070697,5.54267963,1804.2,1803.1,8.45455053]
[1745867070698,5.54335886,1804.0,1803.2,5.54569653]
[1745867070897,5.54558146,1803.3,1803.1,0.05]
[1745867071097,5.54569653,1803.2,1803.1,0.05]
[1745867071834,0.825,1803.6,1803.1,0.05]
[1745867072035,5.54533332,1803.4,1803.1,0.05]
[1745867072243,5.54569653,1803.2,1803.1,0.05]
[1745867072450,6.3694713,1803.6,1803.1,0.05]
[1745867072612,5.54556312,1803.3,1803.1,0.05]
[1745867072935,5.54519048,1803.4,1803.1,0.05]
[1745867073096,5.54555973,1803.3,1803.1,0.05]
[1745867073499,5.54765667,1802.6,1802.1,0.05]
[1745867073741,0.8127,1803.1,1802.1,0.05]
[1745867073905,5.5472347,1802.7,1802.1,0.05]
[1745867074107,0.8127,1802.2,1801.1,0.05]
[1745867074306,5.55172871,1801.3,1801.2,0.28996732]
[1745867074532,5.5515461,1801.3,1801.2,0.28996732]
[1745867074740,16.639,1801.6,1801.1,0.05]
[1745867074958,22.18983501,1801.6,1801.1,0.05]
[1745867075118,16.639,1801.6,1801.1,0.05]
[1745867076015,0.8127,1804.2,1803.0,5.74630199]
[1745867076333,5.59891145,1804.1,1803.4,0.2]
[1745867076667,0.05,1803.9,1803.7,5.54401415]
[1745867076853,0.05,1803.9,1803.7,0.2]
[1745867077202,0.0558513,1804.1,1804.0,5.74323725]
[1745867078204,0.0558513,1804.1,1804.0,6.03665403]
[1745867079473,0.0558513,1804.1,1804.0,9.03665403]
[1745867079842,0.0558513,1804.1,1804.0,6.03665403]
[1745867080163,0.0558513,1804.1,1804.0,0.49341678]
[1745867080540,0.0558513,1804.1,1804.0,5.74323725]
[1745867080876,0.0558513,1804.1,1804.0,6.87190267]
[1745867081061,1e-08,1804.1,1804.0,9.87190267]
[1745867081853,0.05,1804.9,1804.6,0.2]
[1745867082177,0.05,1804.9,1804.8,8.74078014]
[1745867082588,0.05,1804.9,1804.8,0.2]
[1745867082769,0.05,1804.9,1804.8,0.2930403]
[1745867085080,0.05,1804.9,1804.8,6.03382044]
[1745867085452,0.05,1804.9,1804.8,0.4930403]
[1745867085857,0.05,1804.9,1804.8,6.58382044]
[1745867086259,0.05,1804.9,1804.8,1.0430403]
[1745867087305,0.05,1804.9,1804.8,0.2930403]
[1745867087867,0.05,1804.9,1804.8,0.4930403]
[1745867088070,0.05,1804.9,1804.8,0.2930403]
[1745867088071,5.59047315,1804.9,1804.8,0.2930403]
[1745867088311,5.54244601,1804.3,1804.1,0.2]
[1745867088609,5.54244601,1804.3,1803.6,5.54431752]
[1745867088610,5.54277421,1804.2,1803.9,0.2]
[1745867088811,0.7633,1804.5,1803.9,0.2]
[1745867088999,5.54232661,1804.3,1804.0,0.2]
[1745867089173,5.5421224,1804.4,1804.0,0.2]
[1745867089671,0.7633,1804.5,1804.0,0.2]
[1745867089872,5.54247215,1804.3,1803.8,0.2]
[1745867090073,5.54276792,1804.2,1803.8,0.2]
[1745867090288,5.54276792,1804.2,1803.9,0.2]
[1745867090711,5.54250679,1804.3,1803.9,0.2]
[1745867091011,5.54266444,1804.2,1803.8,0.2]
[1745867091315,5.54301508,1804.1,1803.8,0.2]
[1745867091472,5.54287752,1804.2,1803.5,0.2]
[1745867091675,5.54396132,1803.8,1803.5,0.2]
[1745867091885,5.54543413,1803.3,1803.1,0.2]
[1745867092199,0.7764,1803.9,1803.3,0.2]
[1745867092403,6.33762999,1804.1,1803.3,0.2]
[1745867092589,5.54401001,1803.8,1803.4,0.2]
[1745867092787,5.54334924,1804.0,1803.4,0.2]
[1745867093015,5.54368654,1803.9,1803.4,0.2]
[1745867093205,5.54341323,1804.0,1803.4,0.2]
[1745867093520,5.54323725,1804.0,1803.4,0.2]
[1745867093722,5.54360351,1803.9,1803.4,0.2]
[1745867094134,5.54446662,1803.6,1803.3,0.2]
[1745867094339,5.54488562,1803.5,1803.3,0.2]
[1745867094836,0.55436035,1803.9,1803.4,0.2]
[1745867095038,5.54412376,1803.8,1803.4,0.2]
[1745867095240,5.54412376,1803.8,1803.3,0.2]
[1745867095241,5.54406148,1803.8,1803.3,0.2]
[1745867095421,5.54406148,1803.8,1803.4,0.2]
[1745867096552,0.8185,1802.6,1802.1,0.05]
[1745867096719,0.8185,1802.6,1801.9,0.2]
[1745867096720,17.4585,1802.5,1801.2,0.10151962]
[1745867096921,5.55087765,1801.6,1801.1,0.05]
[1745867097124,5.54908162,1802.1,1801.1,0.05]
[1745867097335,5.55125663,1801.4,1801.1,0.05]
[1745867097540,5.55125663,1801.4,1800.1,19.47791693]
[1745867097541,0.7516,1801.3,1800.1,13.92288092]
[1745867097831,5.55212324,1801.2,1800.1,19.18812505]
[1745867098048,5.55299938,1800.9,1800.2,1.91881251]
[1745867098233,5.55304873,1800.9,1800.2,1.91881251]
[1745867098433,5.55188482,1801.2,1800.2,1.91881251]
[1745867098434,5.55316084,1800.8,1800.2,1.91881251]
[1745867098616,5.55287165,1800.9,1800.1,5.6052273]
[1745867098813,5.55240004,1801.1,1800.1,0.05]
[1745867099012,0.7516,1801.3,1800.2,5.55475372]
[1745867099013,5.55273381,1801.0,1800.2,5.55475372]
[1745867099212,5.55366797,1800.7,1800.1,0.05]
[1745867099550,0.8302,1799.3,1798.8,0.29021159]
[1745867099748,0.8302,1800.1,1798.8,0.29021159]
[1745867099904,0.8302,1800.1,1798.5,0.28984595]
[1745867100111,0.8302,1800.1,1798.8,0.29030743]
[1745867100365,5.55730721,1799.5,1798.8,0.29030743]
[1745867100512,5.55592853,1799.9,1799.0,5.55850364]
[1745867100843,5.55403964,1800.5,1798.6,0.4161339]
[1745867100844,5.55555555,1800.0,1798.6,0.4161339]
[1745867101037,4.35305556,1799.9,1798.6,0.4161339]
[1745867101352,0.7975,1799.8,1798.6,0.4161339]
[1745867101549,5.55791348,1799.3,1798.6,0.4161339]
[1745867101752,0.7975,1799.5,1798.6,0.4161339]
[1745867102477,5.55741708,1799.4,1798.6,0.4161339]
[1745867102679,0.7975,1799.5,1798.7,5.55934944]
[1745867102851,0.7975,1799.5,1798.6,1.01374217]
[1745867103067,5.55740802,1799.4,1798.6,0.4161339]
[1745867103399,5.55838373,1799.1,1798.6,0.4161339]
[1745867103599,5.55868565,1799.0,1798.6,0.4161339]
[1745867103966,5.55946877,1798.8,1798.6,0.4161339]
[1745867104284,5.55946877,1798.8,1798.1,0.05]
[1745867104285,5.56042569,1798.5,1798.1,0.05]
[1745867104602,5.56101564,1798.3,1798.1,0.05]
[1745867104761,1.11203733,1798.5,1797.1,0.05]
[1745867104762,0.8168,1798.4,1797.1,0.05]
[1745867104954,0.8168,1798.4,1797.7,5.56251431]
[1745867105268,0.8097,1798.8,1797.8,6.11233633]
[1745867105448,0.8097,1798.8,1797.8,0.55]
[1745867105662,0.8097,1798.8,1797.1,0.05]
[1745867105862,0.8097,1798.8,1797.8,0.55]
[1745867106093,7.0059607,1798.8,1797.9,5.56179194]
[1745867106359,1.44658079,1798.8,1798.0,5.56147155]
[1745867106594,5.5597811,1798.7,1797.9,5.56181061]
[1745867106805,6.36911788,1798.8,1798.0,5.56159001]
[1745867107097,0.8097,1798.8,1797.5,0.55]
[1745867107401,0.8097,1798.8,1798.1,5.56122429]
[1745867107568,6.36896558,1798.8,1798.1,5.56122429]
[1745867107763,6.36913815,1798.8,1798.1,5.56127459]
[1745867107968,6.36917531,1798.8,1798.0,5.56156691]
[1745867108209,5.55995696,1798.6,1797.8,5.56221505]
[1745867108494,0.8097,1798.8,1798.0,5.56150828]
[1745867108695,0.8097,1798.8,1797.8,3.55]
[1745867108898,0.8097,1798.8,1798.5,5.56013494]
[1745867109196,0.8097,1798.8,1797.9,5.5620446]
[1745867109498,0.8097,1798.8,1798.2,5.56094877]
[1745867109697,0.8097,1798.8,1798.2,11.12180844]
[1745867109887,0.8097,1798.8,1798.2,5.56089996]
[1745867110090,0.8097,1798.8,1798.2,11.12175005]
[1745867110263,0.8097,1798.8,1798.4,5.56030588]
[1745867110460,16.669,1799.3,1797.8,3.55]
[1745867110461,0.7608,1799.2,1798.8,5.55906145]
[1745867110664,0.7608,1799.2,1798.7,5.559397]
[1745867110864,0.7608,1799.2,1798.5,5.56004118]
[1745867111064,6.31883507,1799.2,1798.2,5.56099105]
[1745867111302,5.55931811,1798.8,1798.2,5.56093201]
[1745867111499,6.19036662,1799.1,1798.3,0.6]
[1745867111718,0.63188351,1799.1,1798.3,0.6]
[1745867111881,5.55855233,1799.1,1798.4,5.56027395]
[1745867112070,5.5589024,1799.0,1798.4,5.5604303]
[1745867112270,0.7608,1799.2,1798.3,5.56065569]
[1745867112471,5.55894733,1799.0,1798.3,5.56065569]
[1745867112699,5.5590468,1798.9,1798.2,5.56093103]
[1745867112865,0.825,1798.7,1797.4,5.56352429]
[1745867113079,6.38484903,1798.7,1797.7,5.56254187]
[1745867113281,5.56101015,1798.3,1797.7,5.56251501]
[1745867113507,0.825,1798.7,1797.4,5.56351468]
[1745867113715,5.56034543,1798.5,1797.2,8.56417187]
[1745867114018,5.56034543,1798.5,1797.9,5.56197255]
[1745867114371,5.56034543,1798.5,1797.9,5.56185515]
[1745867114708,5.55999976,1798.6,1797.9,5.56185515]
[1745867114892,5.56066752,1798.4,1797.3,5.5639014]
[1745867115210,5.56019924,1798.5,1797.9,5.56178142]
[1745867115406,5.56051743,1798.4,1797.8,5.56222421]
[1745867115615,0.825,1798.7,1798.0,5.56170798]
[1745867115616,5.56005963,1798.6,1798.0,5.56170798]
[1745867115904,6.38462021,1798.7,1798.1,5.56125913]
[1745867116216,6.38462534,1798.7,1798.1,5.56115708]
[1745867116712,0.7589,1799.0,1798.6,5.55973854]
[1745867117012,0.7589,1799.0,1798.6,5.55969253]
[1745867117184,0.7589,1799.0,1798.1,5.56142594]
[1745867117508,0.7589,1799.0,1797.1,5.61444974]
[1745867117716,5.56030209,1798.5,1797.9,5.56189874]
[1745867117877,8.75666832,1799.0,1797.9,5.56179141]
[1745867118075,5.55914101,1798.9,1797.7,5.56261195]
[1745867118408,0.7565,1798.7,1797.7,0.55]
[1745867118608,0.7565,1798.5,1797.2,5.56421099]
[1745867118810,7.19226823,1798.5,1797.7,5.56252879]
[1745867119015,1.63192683,1798.5,1797.8,5.5622435]
[1745867119175,1.63192683,1798.5,1797.4,0.55]
[1745867119374,7.1922257,1798.5,1797.7,5.56250302]
[1745867119577,1.63192683,1798.5,1797.4,5.56356113]
[1745867119782,1.63192683,1798.5,1797.9,5.56193446]
[1745867120090,0.7565,1798.5,1797.9,5.56187233]
[1745867120613,0.7565,1798.5,1798.0,5.5616969]
[1745867120916,0.7565,1798.5,1798.2,5.56099358]
[1745867121274,0.7565,1798.5,1797.9,5.5620446]
[1745867121582,0.7565,1798.5,1798.1,5.56123594]
[1745867121774,0.7565,1798.5,1798.0,5.56153881]
[1745867121977,0.7565,1798.5,1798.0,5.56143449]
[1745867122219,0.7565,1798.5,1798.0,5.56171479]
[1745867122430,1.38814251,1798.5,1797.4,6.17543382]
[1745867122582,5.56173425,1798.1,1797.4,5.56337536]
[1745867122785,3.0,1798.5,1797.3,5.56367289]
[1745867122786,0.7934,1798.0,1797.3,5.56367289]
[1745867123135,5.56254955,1797.8,1797.2,5.56401732]
[1745867123415,5.56252049,1797.8,1797.2,5.56419773]
[1745867125611,5.56473826,1797.1,1796.8,0.4161339]
[1745867125818,0.79,1797.2,1796.8,0.4161339]
[1745867126026,6.35437421,1797.2,1796.8,0.3661339]
[1745867126187,6.35437421,1797.2,1796.1,0.05]
[1745867126188,5.5672361,1796.3,1796.1,0.05]
[1745867126394,6.3511226,1796.5,1796.1,0.05]
[1745867126711,0.7846,1796.5,1796.1,0.05]
[1745867128689,6.3509992,1796.5,1796.1,0.05]
[1745867129021,0.7846,1796.5,1796.1,0.05]
[1745867129207,5.56730876,1796.2,1796.1,0.05]
[1745867129733,5.56781659,1796.1,1795.4,5.5696018]
[1745867129890,5.56781659,1796.1,1795.5,5.56946326]
[1745867130210,5.56751591,1796.2,1795.4,5.5696238]
[1745867130411,5.56775149,1796.1,1795.4,5.56948907]
[1745867130620,5.56751591,1796.2,1795.6,5.56900797]
[1745867130927,5.56705355,1796.3,1795.4,0.55696238]
[1745867131105,0.7556,1795.9,1795.3,5.57000949]
[1745867131305,6.3239587,1795.9,1795.3,5.57000949]
[1745867131490,0.7556,1796.4,1795.8,5.56852862]
[1745867131830,0.2704893,1796.3,1796.1,5.56743316]
[1745867132067,8.63320574,1797.2,1795.8,5.56846857]
[1745867132068,0.8056,1797.9,1796.3,0.3663]
[1745867132362,0.05,1797.9,1797.6,5.56281537]
[1745867132576,0.05,1797.9,1797.8,5.56235398]
[1745867133075,0.05,1797.9,1797.5,5.56311994]
[1745867133235,0.05,1797.9,1797.5,5.5632377]
[1745867133578,0.05,1797.9,1797.7,5.56252172]
[1745867133866,0.05,1797.9,1797.8,5.56235398]
[1745867134430,0.05,1797.9,1797.7,5.56252265]
[1745867134630,0.05,1797.9,1797.8,5.56235398]
[1745867136472,0.05,1797.9,1797.5,5.56304424]
[1745867136779,0.05,1797.9,1797.4,0.3663]
[1745867136982,0.05,1797.9,1797.8,0.6]
[1745867137181,0.05,1797.9,1797.6,5.56295391]
[1745867137541,0.05,1797.9,1797.4,5.92971276]
[1745867137749,0.05,1797.9,1796.9,5.5648597]
[1745867138083,0.8624,1797.9,1797.0,0.49786421]
[1745867138268,5.5635266,1797.5,1797.0,0.49786421]
[1745867138438,3.8624,1797.9,1797.0,0.49786421]
[1745867138439,5.56297285,1797.6,1797.0,0.49786421]
[1745867138633,5.56436749,1797.2,1796.6,5.56602914]
[1745867138882,5.56468776,1797.1,1796.4,5.5666364]
[1745867139044,5.5640686,1797.3,1796.6,5.5658721]
[1745867139252,5.56496693,1797.0,1796.4,6.67994362]
[1745867139471,5.56496693,1797.0,1796.4,5.56659018]
[1745867139677,0.1480348,1796.9,1796.5,5.566215]
[1745867139986,5.56471355,1797.1,1796.3,5.56699883]
[1745867139987,5.56497129,1797.0,1796.3,5.56699883]
[1745867140190,0.14972546,1796.8,1796.4,5.56666156]
[1745867140396,5.56392006,1797.3,1796.2,0.3663]